Workbook

Sheet Blad1
A1: 3) Het aantal dagen (kolom f) mag enkel verschijnen als de einddatum gekend is. Vanaf 7dagen krijgt de klant 10% korting, vanaf 14 20% korting. De kortingen worden verleend op het totale aantal dagen. Er is geen korting en geen btw op verzekeringen.
A3: klasse | B3: type | C3: dagprijs | D3: verzekering per dag | G3: btw | H3: 0.21 | J3: prijzentabel
A4: a | B4: Renault | C4: 26 | D4: 7.5
A5: b | B5: Peugeot | C5: 31 | D5: 7.5 | G5: korting vanaf
A6: c | B6: Fiat | C6: 23.5 | D6: 7.5 | G6: 7 | H6: 0.1
A7: d | B7: Mitsubishi | C7: 35 | D7: 9 | G7: 14 | H7: 0.2
A8: e | B8: Vw | C8: 46 | D8: 10
A9: f | B9: BMW | C9: 50 | D9: 11
A10: g | B10: Mercedes | C10: 56.5 | D10: 11
A12: klant | B12: begint | C12: einde | D12: klasse | E12: type | F12: aantal dagen | G12: totale huurpijs | H12: korting | I12: Totaal exclusief | J12: btw | K12: verzekering | L12: totaal
A13: Devos | B13: 2012-04-14 | C13: 2012-04-20 | D13: B | E13: =VLOOKUP(D13,A$3:B$10,2) -> Peugeot | F13: =IF(OR(B13="",C13=""),"",DATEDIF(B13,C13,"D")) -> 6 | G13: =IF(F13="","",F13*VLOOKUP(E13,B$3:C$10,2,FALSE)) -> 186 | H13: =IF(F13<>"",IF(AND(F13>=G$6,F13<G$7),G13*H$6,IF(F13>=G$7,G13*H$7,0)),"") -> 0 | I13: =IF(F13<>"",(G13-H13),"") -> 186 | J13: =IF(F13<>"",I13*$H$3,"") -> 39.06 | K13: =IF(F13<>"",VLOOKUP(D13,$A$4:$D$10,4,FALSE)*F13,"") -> 45 | L13: =IF(F13<>"",SUM(I13:K13),"") -> 270.06
A14: Lauwers | B14: 2012-04-18 | C14: 2012-04-27 | D14: C | E14: =VLOOKUP(D14,A$3:B$10,2) -> Fiat | F14: =IF(OR(B14="",C14=""),"",DATEDIF(B14,C14,"D")) -> 9 | G14: =IF(F14="","",F14*VLOOKUP(E14,B$3:C$10,2,FALSE)) -> 211.5 | H14: =IF(F14<>"",IF(AND(F14>=G$6,F14<G$7),G14*H$6,IF(F14>=G$7,G14*H$7,0)),"") -> 21.15 | I14: =IF(F14<>"",(G14-H14),"") -> 190.35 | J14: =IF(F14<>"",I14*$H$3,"") -> 39.9735 | K14: =IF(F14<>"",VLOOKUP(D14,$A$4:$D$10,4,FALSE)*F14,"") -> 67.5 | L14: =IF(F14<>"",SUM(I14:K14),"") -> 297.8235
A15: Verlinden | B15: 2012-04-25 | C15: 2012-05-15 | D15: A | E15: Renault | F15: 20 | G15: 520 | H15: =IF(F15<>"",IF(AND(F15>=G$6,F15<G$7),G15*H$6,IF(F15>=G$7,G15*H$7,0)),"") -> 104 | I15: 416 | J15: 87.36 | K15: 150 | L15: 653.36
A16: Debaere | B16: 2012-05-02 | C16: 2012-05-04 | D16: D | E16: Mitsubishi | F16: 2 | G16: 70 | H16: =IF(F16<>"",IF(AND(F16>=G$6,F16<G$7),G16*H$6,IF(F16>=G$7,G16*H$7,0)),"") -> 0 | I16: 70 | J16: 14.7 | K16: 18 | L16: 102.7
A17: Van Parijs | B17: 2012-05-05 | C17: 2012-05-15 | D17: E | E17: Vw | F17: 10 | G17: 460 | H17: =IF(F17<>"",IF(AND(F17>=G$6,F17<G$7),G17*H$6,IF(F17>=G$7,G17*H$7,0)),"") -> 46 | I17: 414 | J17: 86.94 | K17: 100 | L17: 600.94
A18: Wouters | B18: 2012-05-10 | D18: F | E18: BMW | H18: =IF(F18<>"",IF(AND(F18>=G$6,F18<G$7),G18*H$6,IF(F18>=G$7,G18*H$7,0)),"") -> 
A19: De Wilde | B19: 2012-05-13 | C19: 2021-05-20 | D19: G | E19: Mercedes | F19: =IF(OR(B19="",C19=""),"",DATEDIF(B19,C19,"D")) -> 3294 | G19: 186111 | H19: =IF(F19<>"",IF(AND(F19>=G$6,F19<G$7),G19*H$6,IF(F19>=G$7,G19*H$7,0)),"") -> 37222.2 | I19: 148888.8 | J19: 31266.648 | K19: 36234 | L19: 216389.448
